fUSD/lending_fUSD_20251220
["ID","MTS","AMOUNT","RATE_DAILY","PERIOD"]
[399260714,1766214639410,-506.44561835,0.00013698,2]
[399260715,1766214639419,-500.0,0.00013698,2]
[399260716,1766214639428,-500.0,0.00013698,2]
[399260717,1766214639437,-500.0,0.00013698,2]
[399260718,1766214639447,-500.0,0.00013698,2]
[399260719,1766214639456,-500.0,0.00013698,2]
[399260720,1766214639465,-260.33789622,0.00013698,2]
[399260721,1766214639474,-500.0,0.00013698,2]
[399260722,1766214639484,-500.0,0.00013698,2]
[399260723,1766214639493,-500.0,0.00013698,2]
[399260724,1766214639502,-500.0,0.00013698,2]
[399260725,1766214639511,-500.0,0.00013698,2]
[399260726,1766214639521,-500.0,0.00013698,2]
[399260727,1766214639531,-500.0,0.00013698,2]
[399260728,1766214639540,-500.0,0.00013698,2]
[399260729,1766214639550,-500.0,0.00013698,2]
[399260730,1766214639560,-500.0,0.00013698,2]
[399260731,1766214639569,-500.0,0.00013698,2]
[399260732,1766214639578,-500.0,0.00013698,2]
[399260733,1766214639587,-500.0,0.00013698,2]
[399260734,1766214639596,-500.0,0.00013698,2]
[399260735,1766214639606,-500.0,0.00013698,2]
[399260736,1766214639616,-500.0,0.00013698,2]
[399260737,1766214639625,-500.0,0.00013698,2]
[399260738,1766214639634,-500.0,0.00013698,2]
[399260739,1766214639643,-502.26583075,0.00013698,2]
[399260740,1766214639652,-500.0,0.00013698,2]
[399260741,1766214639662,-500.0,0.00013698,2]
[399260742,1766214639671,-500.0,0.00013698,2]
[399260743,1766214639681,-500.0,0.00013698,2]
[399260744,1766214639691,-500.0,0.00013698,2]
[399260745,1766214639700,-500.0,0.00013698,2]
[399260746,1766214639709,-500.0,0.00013698,2]
[399260747,1766214639718,-500.0,0.00013698,2]
[399260748,1766214639728,-500.0,0.00013698,2]
[399260749,1766214639737,-500.0,0.00013698,2]
[399260750,1766214639746,-500.0,0.00013698,2]
[399260751,1766214639755,-500.0,0.00013698,2]
[399260752,1766214639763,-500.0,0.00013698,2]
[399260753,1766214639772,-500.0,0.00013698,2]
[399260754,1766214639782,-500.0,0.00013698,2]
[399260755,1766214639794,-500.0,0.00013698,2]
[399260756,1766214639803,-500.0,0.00013698,2]
[399260757,1766214639812,-294.2331637,0.00013698,2]
[399260758,1766214639822,-500.0,0.00013698,2]
[399260759,1766214639832,-500.0,0.00013698,2]
[399260760,1766214639841,-500.0,0.00013698,2]
[399260761,1766214639851,-500.0,0.00013698,2]
[399260762,1766214639862,-500.0,0.00013698,2]
[399260763,1766214639871,-500.0,0.00013698,2]
[399260764,1766214639880,-467.18251007,0.00013698,2]
[399260765,1766214639890,-500.0,0.00013698,2]
[399260766,1766214639899,-500.0,0.00013698,2]
[399260767,1766214639908,-500.0,0.00013698,2]
[399260768,1766214639917,-500.0,0.00013698,2]
[399260769,1766214639927,-500.0,0.00013698,2]
[399260770,1766214639936,-500.0,0.00013698,2]
[399260771,1766214639945,-500.0,0.00013698,2]
[399260772,1766214639954,-500.0,0.00013698,2]
[399260773,1766214639963,-500.0,0.00013698,2]
[399260774,1766214639972,-500.0,0.00013698,2]
[399260775,1766214639982,-500.0,0.00013698,2]
[399260776,1766214639991,-500.0,0.00013698,2]
[399260777,1766214640000,-500.0,0.00013698,2]
[399260778,1766214640010,-500.0,0.00013698,2]
[399260779,1766214640019,-500.0,0.00013698,2]
[399260780,1766214640027,-500.0,0.00013698,2]
[399260781,1766214640037,-500.0,0.00013698,2]
[399260782,1766214640046,-500.0,0.00013698,2]
[399260783,1766214640055,-500.0,0.00013698,2]
[399260784,1766214640065,-500.0,0.00013698,2]
[399260785,1766214640074,-500.0,0.00013698,2]
[399260786,1766214640083,-500.0,0.00013698,2]
[399260787,1766214640092,-500.0,0.00013698,2]
[399260788,1766214640102,-500.0,0.00013698,2]
[399260789,1766214640111,-500.0,0.00013698,2]
[399260790,1766214640120,-500.0,0.00013698,2]
[399260791,1766214640129,-500.0,0.00013698,2]
[399260792,1766214640139,-500.0,0.00013698,2]
[399260793,1766214640148,-508.21699251,0.00013698,2]
[399260794,1766214640157,-500.0,0.00013698,2]
[399260795,1766214640166,-500.0,0.00013698,2]
[399260796,1766214640175,-500.0,0.00013698,2]
[399260797,1766214640185,-500.0,0.00013698,2]
[399260798,1766214640194,-500.0,0.00013698,2]
[399260799,1766214640204,-500.0,0.00013698,2]
[399260800,1766214640213,-505.83670147,0.00013698,2]
[399260801,1766214640222,-500.0,0.00013698,2]
[399260802,1766214640232,-500.0,0.00013698,2]
[399260803,1766214640242,-500.0,0.00013698,2]
[399260804,1766214640251,-500.0,0.00013698,2]
[399260805,1766214640260,-500.0,0.00013698,2]
[399260806,1766214640269,-500.0,0.00013698,2]
[399260807,1766214640278,-500.0,0.00013698,2]
[399260808,1766214640288,-500.0,0.00013698,2]
[399260809,1766214640297,-502.93074974,0.00013698,2]
[399260810,1766214640307,-500.0,0.00013698,2]
[399260811,1766214640315,-500.0,0.00013698,2]
[399260812,1766214640324,-500.0,0.00013698,2]
[399260813,1766214640333,-500.0,0.00013698,2]
[399260814,1766214640342,-500.0,0.00013698,2]
[399260815,1766214640351,-500.0,0.00013698,2]
[399260816,1766214640361,-500.0,0.00013698,2]
[399260817,1766214640370,-500.0,0.00013698,2]
[399260818,1766214640379,-500.0,0.00013698,2]
[399260819,1766214640387,-500.0,0.00013698,2]
[399260820,1766214640396,-500.0,0.00013698,2]
[399260821,1766214640406,-518.52076054,0.00013698,2]
[399260822,1766214640415,-500.0,0.00013698,2]
[399260823,1766214640424,-500.0,0.00013698,2]
[399260824,1766214640433,-500.0,0.00013698,2]
[399260825,1766214640443,-500.0,0.00013698,2]
[399260826,1766214640452,-335.96353796,0.00013698,2]
[399260827,1766214640461,-500.0,0.00013698,2]
[399260828,1766214640470,-500.0,0.00013698,2]
[399260829,1766214640479,-500.0,0.00013698,2]
[399260830,1766214640489,-380.49841819,0.00013698,2]
[399260831,1766214640498,-500.0,0.00013698,2]
[399260832,1766214640507,-500.0,0.00013698,2]
[399260834,1766214640516,-500.0,0.00013698,2]
[399260835,1766214640525,-500.0,0.00013698,2]
[399260836,1766214640534,-500.0,0.00013698,2]
[399260837,1766214640543,-500.0,0.00013698,2]
[399260838,1766214640552,-500.0,0.00013698,2]
[399260839,1766214640561,-500.0,0.00013698,2]
[399260840,1766214640571,-552.79617748,0.00013698,2]
[399260841,1766214640580,-500.0,0.00013698,2]
[399260842,1766214640588,-500.0,0.00013698,2]
[399260843,1766214640597,-500.0,0.00013698,2]
[399260844,1766214640607,-500.0,0.00013698,2]
[399260845,1766214640615,-500.0,0.00013698,2]
[399260846,1766214640624,-500.0,0.00013698,2]
[399260847,1766214640633,-500.0,0.00013698,2]
[399260848,1766214640642,-500.0,0.00013698,2]
[399260849,1766214640651,-500.0,0.00013698,2]
[399260850,1766214640660,-487.49534907,0.00013698,2]
[399260851,1766214640669,-500.0,0.00013698,2]
[399260852,1766214640677,-500.0,0.00013698,2]
[399260853,1766214640687,-500.0,0.00013698,2]
[399260854,1766214640696,-500.0,0.00013698,2]
[399260855,1766214640705,-500.0,0.00013698,2]
[399260856,1766214640715,-500.0,0.00013698,2]
[399260857,1766214640725,-500.0,0.00013698,2]
[399260858,1766214640734,-500.0,0.00013698,2]
[399260859,1766214640743,-500.0,0.00013698,2]
[399260860,1766214640752,-500.0,0.00013698,2]
[399260861,1766214640761,-500.0,0.00013698,2]
[399260862,1766214640770,-500.0,0.00013698,2]
[399260863,1766214640780,-200.0,0.00013699,2]
[399260864,1766214640792,-1000.0,0.00013699,2]
[399260865,1766214640802,-500.0,0.00013699,2]
[399260866,1766214640811,-500.0,0.00013699,2]
[399260867,1766214640819,-500.0,0.00013699,2]
[399260868,1766214640828,-500.0,0.00013699,2]
[399260869,1766214640838,-500.0,0.00013699,2]
[399260870,1766214640849,-500.0,0.00013699,2]
[399260871,1766214640862,-500.0,0.00013699,2]
[399260872,1766214640873,-500.0,0.00013699,2]
[399260873,1766214640883,-500.0,0.00013699,2]
[399260874,1766214640893,-500.0,0.00013699,2]
[399260875,1766214640902,-500.0,0.00013699,2]
[399260876,1766214640911,-500.0,0.00013699,2]
[399260877,1766214640921,-500.0,0.00013699,2]
[399260878,1766214640930,-499.72722483,0.00013699,2]
[399260879,1766214640938,-357.49060572,0.00013699,2]
[399260880,1766214640947,-500.0,0.00013699,2]
[399260881,1766214640956,-500.0,0.00013699,2]
[399260882,1766214640965,-500.0,0.00013699,2]
[399260883,1766214640974,-500.0,0.00013699,2]
[399260884,1766214640984,-500.0,0.00013699,2]
[399260885,1766214640993,-500.0,0.00013699,2]
[399260886,1766214641002,-500.0,0.00013699,2]
[399260887,1766214641013,-500.0,0.00013699,2]
[399260888,1766214641022,-500.0,0.00013699,2]
[399260889,1766214641032,-500.0,0.00013699,2]
[399260890,1766214641041,-500.0,0.00013699,2]
[399260891,1766214641050,-500.0,0.00013699,2]
[399260892,1766214641059,-500.0,0.00013699,2]
[399260893,1766214641068,-500.0,0.00013699,2]
[399260894,1766214641077,-2748.82,0.000137,2]
[399260895,1766214641087,-2748.82,0.000137,2]
[399260896,1766214641096,-2748.82,0.000137,2]
[399260897,1766214641106,-2748.82,0.000137,2]
[399260898,1766214641115,-31291.0,0.000137,2]
[399260899,1766214641125,-2748.82,0.000137,2]
[399260900,1766214641134,-760.18,0.00013772,2]
[399260901,1766214641144,-172.76817182,0.00013773,2]
[399260902,1766214641153,-500.0,0.00013773,2]
[399260903,1766214641163,-163.10613259,0.00013773,2]
[399260904,1766214641172,-163.72295793,0.00013773,2]
[399260905,1766214641182,-166.07222089,0.00013773,2]
[399260906,1766214641191,-172.60476821,0.00013773,2]
[399260907,1766214641202,-500.0,0.00013773,2]
[399260908,1766214641211,-500.0,0.00013773,2]
[399260909,1766214641221,-500.0,0.00013773,2]
[399260910,1766214641231,-500.0,0.00013773,2]
[399260911,1766214641241,-500.0,0.00013773,2]
[399260912,1766214641250,-500.50034776,0.00013773,2]
[399260913,1766214641259,-500.0,0.00013773,2]
[399260914,1766214641268,-169.28855325,0.00013773,2]
[399260915,1766214641277,-500.0,0.00013773,2]
[399260916,1766214641287,-176.6683039,0.00013773,2]
[399260917,1766214641296,-500.63598857,0.00013773,2]
[399260918,1766214641305,-500.0,0.00013773,2]
[399260919,1766214641314,-165.7973653,0.00013773,2]
[399260920,1766214641323,-500.0,0.00013773,2]
[399260921,1766214641332,-536.13646338,0.00013773,2]
[399260922,1766214641341,-500.0,0.00013773,2]
[399260923,1766214641351,-500.0,0.00013773,2]
[399260924,1766214641360,-500.0,0.00013773,2]
[399260925,1766214641370,-500.0,0.00013773,2]
[399260926,1766214641379,-315.42381846,0.00013773,2]
[399260927,1766214641387,-500.0,0.00013773,2]
[399260928,1766214641397,-500.0,0.00013773,2]
[399260929,1766214641406,-500.0,0.00013773,2]
[399260930,1766214641415,-500.0,0.00013773,2]
[399260931,1766214641423,-165.53185787,0.00013773,2]
[399260932,1766214641432,-165.31243658,0.00013773,2]
[399260933,1766214641442,-162.87078705,0.00013773,2]
[399260934,1766214641451,-168.59999571,0.00013773,2]
[399260935,1766214641460,-500.0,0.00013773,2]
[399260936,1766214641470,-500.0,0.00013773,2]
[399260937,1766214641479,-500.0,0.00013773,2]
[399260938,1766214641487,-201.65516925,0.00013773,2]
[399260939,1766214641496,-216.27337885,0.00013773,2]
[399260940,1766214641505,-500.0,0.00013773,2]
[399260941,1766214641514,-500.0,0.00013773,2]
[399260942,1766214641523,-500.0,0.00013773,2]
[399260943,1766214641532,-160.23016142,0.00013773,2]
[399260944,1766214641541,-500.0,0.00013773,2]
[399260945,1766214641550,-515.85064943,0.00013773,2]
[399260946,1766214641559,-500.0,0.00013773,2]
[399260947,1766214641568,-500.0,0.00013773,2]
[399260948,1766214641577,-500.0,0.00013773,2]
[399260949,1766214641586,-162.0459649,0.00013773,2]
[399260950,1766214641595,-179.50290541,0.00013773,2]
[399260951,1766214641604,-500.0,0.00013874,2]
[399260952,1766214641613,-200.0,0.00013874,2]
[399260953,1766214641622,-200.0,0.00013874,2]
[399260954,1766214641631,-2238.74,0.00013874,2]
[399260955,1766214641640,-166.66,0.00013913,2]
[399260956,1766214641649,-250.0,0.00013918,2]
[399260957,1766214641658,-312.0,0.00013972,2]
[399260958,1766214641667,-500.0,0.00014,2]
[399260959,1766214641676,-42576.5865469,0.00014052,2]
[399260960,1766214641685,-33923.89774458,0.00014052,2]
[399260961,1766214641694,-5525.0,0.000141,3]
[399260962,1766214641703,-2238.74,0.00014148,2]
[399260963,1766214641712,-208.16009032,0.00014321,2]
[399260964,1766214641721,-572.75082077,0.00014321,2]
[399260965,1766214641730,-535.09556247,0.00014321,2]
[399260966,1766214641739,-1001.90897722,0.00014321,2]
[399260967,1766214641748,-1135.18911943,0.00014321,2]
[399260968,1766214641757,-1000.0,0.00014321,2]
[399260969,1766214641766,-1000.84503146,0.00014321,2]
[399260970,1766214641775,-500.48342927,0.00014321,2]
[399260971,1766214641785,-483.93215772,0.00014321,2]
[399260972,1766214641794,-453.43519306,0.00014321,2]
[399260973,1766214641803,-1000.0,0.00014321,2]
[399260974,1766214641812,-627.27365114,0.00014321,2]
[399260975,1766214641821,-1002.93994495,0.00014321,2]
[399260976,1766214641831,-1000.0,0.00014321,2]
[399260977,1766214641840,-1000.0,0.00014321,2]
[399260978,1766214641849,-1000.0,0.00014321,2]
[399260979,1766214641859,-1000.78461254,0.00014321,2]
[399260980,1766214641869,-1000.0,0.00014321,2]
[399260981,1766214641878,-1000.0,0.00014321,2]
[399260982,1766214641887,-1000.0,0.00014321,2]
[399260983,1766214641896,-1000.0,0.00014321,2]
[399260984,1766214641905,-1000.0,0.00014321,2]
[399260985,1766214641914,-1000.0,0.00014321,2]
[399260986,1766214641923,-1000.0,0.00014321,2]
[399260987,1766214641932,-1000.0,0.00014321,2]
[399260988,1766214641940,-1000.0,0.00014321,2]
[399260989,1766214641950,-1000.0,0.00014321,2]
[399260990,1766214641959,-594.53896978,0.00014321,2]
[399260991,1766214641968,-166.66,0.00014373,2]
[399260992,1766214641977,-5525.0,0.000144,5]
[399260993,1766214641986,-500.0,0.00014422,2]
[399260994,1766214641995,-200.0,0.00014422,2]
[399260995,1766214642004,-200.0,0.00014422,2]
[399260996,1766214642013,-2238.74,0.00014422,2]
[399260997,1766214642022,-1852.42,0.00014635,2]
[399260998,1766214642031,-500.0,0.00014683,2]
[399260999,1766214642041,-2238.74,0.00014696,2]
[399261000,1766214642050,-42576.5865469,0.00014764,2]
[399261001,1766214642059,-33923.89774458,0.00014764,2]
[399261002,1766214642068,-508.78923664,0.00014799,2]
[399261003,1766214642077,-500.0,0.00014799,2]
[399261004,1766214642086,-511.62107373,0.00014799,2]
[399261005,1766214642095,-500.0,0.00014799,2]
[399261006,1766214642104,-500.0,0.00014799,2]
[399261007,1766214642114,-500.0,0.00014799,2]
[399261008,1766214642123,-166.66,0.00014832,2]
[399261009,1766214642132,-151.0,0.00014865,2]
[399261010,1766214642142,-1500.0,0.00014868,2]
[399261011,1766214642151,-1001.58945381,0.00014868,2]
[399261012,1766214642160,-365.94030489,0.00014868,2]
[399261013,1766214642169,-1500.0,0.00014868,2]
[399261014,1766214642179,-1500.0,0.00014868,2]
[399261015,1766214642188,-502.20443143,0.00014868,2]
[399261016,1766214642197,-1001.91769362,0.00014868,2]
[399261017,1766214642206,-1500.0,0.00014868,2]
[399261018,1766214642215,-1503.97714891,0.00014868,2]
[399261019,1766214642225,-1500.0,0.00014868,2]
[399261020,1766214642234,-1211.67995912,0.00014868,2]
[399261021,1766214642243,-1501.51415398,0.00014868,2]
[399261022,1766214642252,-1500.0,0.00014868,2]
[399261023,1766214642262,-1500.0,0.00014868,2]
[399261024,1766214642271,-1502.00400434,0.00014868,2]
[399261025,1766214642280,-500.0,0.0001497,2]
[399261026,1766214642290,-200.0,0.0001497,2]
[399261027,1766214642299,-200.0,0.0001497,2]
[399261028,1766214642309,-2238.74,0.0001497,2]
[399261029,1766214642318,-2238.74,0.00015244,2]
[399261030,1766214642327,-545.27987928,0.00015261,2]
[399261031,1766214642336,-155.64705311,0.00015288,2]
[399261032,1766214642345,-158.48329942,0.00015288,2]
[399261033,1766214642354,-160.33063992,0.00015288,2]
[399261034,1766214642363,-151.72084113,0.00015288,2]
[399261035,1766214642372,-150.0,0.00015288,2]
[399261036,1766214642381,-156.76422926,0.00015288,2]
[399261037,1766214642390,-157.75435091,0.00015288,2]
[399261038,1766214642399,-152.11986511,0.00015288,2]
[399261039,1766214642409,-155.96693599,0.00015288,2]
[399261040,1766214642417,-151.68546767,0.00015288,2]
[399261041,1766214642427,-150.82546103,0.00015288,2]
[399261042,1766214642436,-166.66,0.00015291,2]
[399261043,1766214642619,-1188.04388907,0.00015416,2]
[399261044,1766214642628,-2000.0,0.00015416,2]
[399261045,1766214642637,-2000.0,0.00015416,2]
[399261046,1766214642647,-1501.47727649,0.00015416,2]
[399261047,1766214642656,-1503.12423045,0.00015416,2]
[399261048,1766214642665,-1393.70965969,0.00015416,2]
[399261049,1766214642676,-2002.17420355,0.00015416,2]
[399261050,1766214642685,-42576.5865469,0.00015476,2]
[399261051,1766214642695,-33923.89774458,0.00015476,2]
[399261052,1766214642704,-500.0,0.00015518,2]
[399261053,1766214642713,-200.0,0.00015518,2]
[399261054,1766214642723,-200.0,0.00015518,2]
[399261055,1766214642733,-2238.74,0.00015518,2]
[399261056,1766214642743,-760.18,0.00015521,2]
[399261057,1766214642752,-150.0,0.00015627,2]
[399261058,1766214642761,-166.66,0.0001575,2]
[399261059,1766214642770,-500.0,0.00015753,2]
[399261060,1766214642781,-500.0,0.00015753,2]
[399261061,1766214642790,-539.0,0.00015753,2]
[399261062,1766214642800,-500.0,0.00015753,2]
[399261063,1766214642809,-151.04245761,0.00015753,2]
[399261064,1766214642819,-441.0,0.00015753,2]
[399261065,1766214642830,-500.0,0.00015753,2]
[399261066,1766214642839,-150.0,0.00015753,2]
[399261067,1766214642850,-152.49962646,0.00015753,2]
[399261068,1766214642860,-500.0,0.00015753,2]
[399261069,1766214642870,-500.0,0.00015753,2]
[399261071,1766214642879,-150.0,0.00015753,2]
[399261073,1766214642889,-150.97899754,0.00015753,2]
[399261075,1766214642898,-500.0,0.00015753,2]
[399261077,1766214642907,-500.0,0.00015753,2]
[399261078,1766214642918,-150.0,0.00015753,2]
[399261079,1766214642928,-150.0,0.00015753,2]
[399261080,1766214642938,-500.0,0.00015753,2]
[399261081,1766214642947,-150.0,0.00015753,2]
[399261082,1766214642956,-500.0,0.00015753,2]
[399261083,1766214642966,-150.0,0.00015753,2]
[399261084,1766214642976,-150.0,0.00015753,2]
[399261085,1766214642985,-150.0,0.00015753,2]
[399261086,1766214642995,-150.0,0.00015753,2]
[399261087,1766214643004,-150.0,0.00015753,2]
[399261088,1766214643014,-500.0,0.00015753,2]
[399261089,1766214643023,-500.0,0.00015753,2]
[399261090,1766214643033,-150.0,0.00015753,2]
[399261091,1766214643042,-500.0,0.00015753,2]
[399261092,1766214643052,-500.0,0.00015753,2]
[399261093,1766214643062,-150.0,0.00015753,2]
[399261094,1766214643071,-500.0,0.00015753,2]
[399261095,1766214643081,-500.0,0.00015753,2]
[399261096,1766214643091,-519.0,0.00015753,2]
[399261097,1766214643100,-150.0,0.00015753,2]
[399261098,1766214643110,-151.90726099,0.00015753,2]
[399261099,1766214643120,-150.0,0.00015753,2]
[399261100,1766214643130,-1104.0,0.00015753,2]
[399261101,1766214643139,-150.0,0.00015753,2]
[399261102,1766214643149,-150.0,0.00015753,2]
[399261103,1766214643158,-500.0,0.00015753,2]
[399261104,1766214643168,-500.0,0.00015753,2]
[399261105,1766214643177,-500.0,0.00015753,2]
[399261106,1766214643187,-500.0,0.00015753,2]
[399261107,1766214643197,-866.0,0.00015753,2]
[399261108,1766214643206,-150.0,0.00015753,2]
[399261109,1766214643216,-150.0,0.00015753,2]
[399261110,1766214643225,-500.0,0.00015753,2]
[399261111,1766214643234,-150.0,0.00015753,2]
[399261112,1766214643244,-2238.85,0.00015792,2]
[399261113,1766214643254,-500.0,0.0001589,2]
[399261114,1766214643263,-500.0,0.0001589,2]
[399261115,1766214643273,-539.0,0.0001589,2]
[399261116,1766214643283,-500.0,0.0001589,2]
[399261117,1766214643292,-441.0,0.0001589,2]
[399261118,1766214643301,-500.0,0.0001589,2]
[399261119,1766214643311,-150.0,0.0001589,2]
[399261120,1766214643320,-500.0,0.0001589,2]
[399261121,1766214643330,-500.0,0.0001589,2]
[399261122,1766214643339,-150.0,0.0001589,2]
[399261123,1766214643348,-500.0,0.0001589,2]
[399261124,1766214643358,-500.0,0.0001589,2]
[399261125,1766214643367,-150.0,0.0001589,2]
[399261126,1766214643376,-150.0,0.0001589,2]
[399261127,1766214643385,-500.0,0.0001589,2]
[399261128,1766214643394,-150.0,0.0001589,2]
[399261129,1766214643403,-500.0,0.0001589,2]
[399261130,1766214643413,-150.0,0.0001589,2]
[399261131,1766214643422,-150.0,0.0001589,2]
[399261132,1766214643431,-150.0,0.0001589,2]
[399261133,1766214643440,-150.0,0.0001589,2]
[399261134,1766214643450,-150.29349305,0.0001589,2]
[399261135,1766214643459,-500.0,0.0001589,2]
[399261136,1766214643468,-500.0,0.0001589,2]
[399261137,1766214643477,-150.0,0.0001589,2]
[399261138,1766214643488,-500.0,0.0001589,2]
[399261139,1766214643498,-500.0,0.0001589,2]
[399261140,1766214643507,-201.2765323,0.0001589,2]
[399261141,1766214643517,-500.0,0.0001589,2]
[399261142,1766214643526,-500.0,0.0001589,2]
[399261143,1766214643535,-519.0,0.0001589,2]
[399261145,1766214643544,-150.0,0.0001589,2]
[399261147,1766214643553,-150.0,0.0001589,2]
[399261148,1766214643562,-1104.0,0.0001589,2]
[399261149,1766214643571,-150.0,0.0001589,2]
[399261150,1766214643580,-150.0,0.0001589,2]
[399261151,1766214643589,-500.0,0.0001589,2]
[399261152,1766214643598,-500.0,0.0001589,2]
[399261153,1766214643607,-500.0,0.0001589,2]
[399261154,1766214643616,-500.0,0.0001589,2]
[399261155,1766214643626,-866.0,0.0001589,2]
[399261156,1766214643636,-500.0,0.0001589,2]
[399261157,1766214643646,-516.38539239,0.000159,2]
[399261158,1766214643655,-516.38539239,0.000159,2]
[399261159,1766214643664,-516.38539239,0.000159,2]
[399261160,1766214643673,-516.38539239,0.000159,2]
[399261161,1766214643683,-516.38539239,0.000159,2]
[399261162,1766214643693,-516.38539239,0.000159,2]
[399261163,1766214643703,-2500.0,0.00015964,2]
[399261164,1766214643712,-2500.0,0.00015964,2]
[399261165,1766214643721,-150.0,0.00015967,2]
[399261166,1766214643730,-500.0,0.00016027,2]
[399261167,1766214643740,-539.0,0.00016027,2]
[399261168,1766214643751,-500.0,0.00016027,2]
[399261169,1766214643761,-500.0,0.00016027,2]
[399261170,1766214643770,-441.0,0.00016027,2]
[399261171,1766214643781,-353.74835527,0.00016027,2]
[399261172,1766214643790,-151.21834691,0.00016027,2]
[399261173,1766214643799,-500.0,0.00016027,2]
[399261174,1766214643808,-500.0,0.00016027,2]
[399261175,1766214643818,-150.0,0.00016027,2]
[399261176,1766214643828,-501.70181775,0.00016027,2]
[399261177,1766214643838,-500.0,0.00016027,2]
[399261178,1766214643847,-150.0,0.00016027,2]
[399261179,1766214643857,-231.95831861,0.00016027,2]
[399261180,1766214643866,-500.0,0.00016027,2]
[399261181,1766214643876,-150.0,0.00016027,2]
[399261182,1766214643885,-500.0,0.00016027,2]
[399261183,1766214643894,-150.0,0.00016027,2]
[399261184,1766214643903,-150.0,0.00016027,2]
[399261185,1766214643912,-164.7217925,0.00016027,2]
[399261186,1766214643921,-150.0,0.00016027,2]
[399261187,1766214643930,-500.0,0.00016027,2]
[399261188,1766214643940,-500.0,0.00016027,2]
[399261189,1766214643950,-256.61900573,0.00016027,2]
[399261190,1766214643960,-500.0,0.00016027,2]
[399261191,1766214643969,-467.42824898,0.00016027,2]
[399261192,1766214643979,-500.0,0.00016027,2]
[399261193,1766214643988,-282.01458536,0.00016027,2]
[399261194,1766214643997,-519.0,0.00016027,2]
[399261195,1766214644006,-150.0,0.00016027,2]
[399261196,1766214644016,-150.0,0.00016027,2]
[399261197,1766214644025,-1104.0,0.00016027,2]
[399261198,1766214644034,-150.0,0.00016027,2]
[399261199,1766214644044,-500.0,0.00016027,2]
[399261200,1766214644054,-500.0,0.00016027,2]
[399261201,1766214644064,-500.0,0.00016027,2]
[399261202,1766214644074,-500.0,0.00016027,2]
[399261203,1766214644083,-866.0,0.00016027,2]
[399261204,1766214644092,-500.0,0.00016027,2]
[399261205,1766214644102,-215.0738,0.00016064,2]
[399261206,1766214644111,-500.0,0.00016066,2]
[399261207,1766214644121,-200.0,0.00016066,2]
[399261208,1766214644131,-200.0,0.00016066,2]
[399261209,1766214644140,-500.0,0.00016137,2]
[399261210,1766214644149,-500.0,0.00016164,2]
[399261211,1766214644159,-500.0,0.00016164,2]
[399261212,1766214644168,-539.0,0.00016164,2]
[399261213,1766214644178,-500.0,0.00016164,2]
[399261214,1766214644188,-441.0,0.00016164,2]
[399261215,1766214644198,-500.0,0.00016164,2]
[399261216,1766214644207,-500.0,0.00016164,2]
[399261217,1766214644217,-151.61208378,0.00016164,2]
[399261218,1766214644227,-150.0,0.00016164,2]
[399261219,1766214644236,-500.0,0.00016164,2]
[399261220,1766214644246,-500.0,0.00016164,2]